[Event "Late-Titled-Tuesday-Blitz-March-26-2024"]
[Site "Chess.com"]
[Date "2024.03.26"]
[Round "5"]
[White "Tol_Tol"]
[Black "ImportedItalianMaple"]
[Result "0-1"]
[WhiteElo "2298"]
[BlackElo "2516"]
[TimeControl "180+1"]
[EndTime "14:58:10 PDT"]
[Termination "ImportedItalianMaple won on time"]

1. d4 {[%clk 0:03:00.9]} 1... g6 {[%clk 0:02:59.5]} 2. c4 {[%clk 0:02:58.9]}
2... Bg7 {[%clk 0:02:59.8]} 3. Nc3 {[%clk 0:02:59.3]} 3... c5 {[%clk 0:03:00.2]}
4. d5 {[%clk 0:02:59.7]} 4... Bxc3+ {[%clk 0:03:00.7]} 5. bxc3 {[%clk
0:03:00.5]} 5... e5 {[%clk 0:03:01.4]} 6. dxe6 {[%clk 0:02:45]} 6... dxe6 {[%clk
0:03:00]} 7. Qxd8+ {[%clk 0:02:44.2]} 7... Kxd8 {[%clk 0:03:00.9]} 8. g3 {[%clk
0:02:37]} 8... Nc6 {[%clk 0:02:55.3]} 9. Be3 {[%clk 0:02:33.4]} 9... b6 {[%clk
0:02:53]} 10. Bg2 {[%clk 0:02:33.2]} 10... Bb7 {[%clk 0:02:53.5]} 11. Rb1 {[%clk
0:02:33.1]} 11... Kc7 {[%clk 0:02:43.7]} 12. Nh3 {[%clk 0:02:28.9]} 12... Nge7
{[%clk 0:02:23.2]} 13. Ng5 {[%clk 0:02:25.4]} 13... Raf8 {[%clk 0:02:20.5]} 14.
O-O {[%clk 0:02:05.6]} 14... h6 {[%clk 0:02:19.7]} 15. Ne4 {[%clk 0:02:05.3]}
15... f5 {[%clk 0:02:20.2]} 16. Nd2 {[%clk 0:02:00.9]} 16... g5 {[%clk
0:02:17.2]} 17. Nb3 {[%clk 0:01:56.5]} 17... e5 {[%clk 0:02:04.8]} 18. Rfd1
{[%clk 0:01:41.7]} 18... f4 {[%clk 0:01:56.1]} 19. Bc1 {[%clk 0:01:36.1]} 19...
Rd8 {[%clk 0:01:44.9]} 20. Bd5 {[%clk 0:01:22.3]} 20... Rd6 {[%clk 0:01:36]} 21.
e4 {[%clk 0:01:22.1]} 21... fxe3 {[%clk 0:01:28.8]} 22. Bxe3 {[%clk 0:01:21.8]}
22... Rhd8 {[%clk 0:01:29.3]} 23. Bxc5 {[%clk 0:01:03.1]} 23... bxc5 {[%clk
0:01:19.6]} 24. Nxc5 {[%clk 0:01:03.3]} 24... Bc8 {[%clk 0:01:19.8]} 25. Ne4
{[%clk 0:00:59.9]} 25... Rg6 {[%clk 0:00:49.7]} 26. Bf7 {[%clk 0:00:33.8]} 26...
Rg7 {[%clk 0:00:34.4]} 27. Rxd8 {[%clk 0:00:31]} 27... Nxd8 {[%clk 0:00:35.3]}
28. Bd5 {[%clk 0:00:25.4]} 28... Bf5 {[%clk 0:00:15.9]} 29. Re1 {[%clk
0:00:20.6]} 29... Nxd5 {[%clk 0:00:13.5]} 30. cxd5 {[%clk 0:00:19.7]} 30... Bxe4
{[%clk 0:00:14.2]} 31. Rxe4 {[%clk 0:00:19.5]} 31... Kd6 {[%clk 0:00:14.1]} 32.
c4 {[%clk 0:00:19.3]} 32... Nb7 {[%clk 0:00:14.6]} 33. Re3 {[%clk 0:00:17.4]}
33... Nc5 {[%clk 0:00:14.7]} 34. Ra3 {[%clk 0:00:17.4]} 34... a6 {[%clk
0:00:14.2]} 35. Rf3 {[%clk 0:00:15.1]} 35... Ne4 {[%clk 0:00:08.8]} 36. Rb3
{[%clk 0:00:15.2]} 36... Kc5 {[%clk 0:00:08.6]} 37. f3 {[%clk 0:00:10.7]} 37...
Nd2 {[%clk 0:00:07]} 38. Rd3 {[%clk 0:00:10.6]} 38... Nxc4 {[%clk 0:00:06.9]}
39. Kf2 {[%clk 0:00:06.7]} 39... Rd7 {[%clk 0:00:07.5]} 40. Rb3 {[%clk
0:00:04.6]} 40... Rxd5 {[%clk 0:00:06.6]} 41. Rb8 {[%clk 0:00:04.4]} 41... Rd2+
{[%clk 0:00:06.9]} 42. Kg1 {[%clk 0:00:03.1]} 42... Rxa2 {[%clk 0:00:07.3]} 43.
Rc8+ {[%clk 0:00:02.7]} 43... Kd4 {[%clk 0:00:07.4]} 44. Rh8 {[%clk 0:00:03.6]}
44... Ke3 {[%clk 0:00:07.3]} 45. Rxh6 {[%clk 0:00:03.3]} 45... Kxf3 {[%clk
0:00:07.6]} 46. Rf6+ {[%clk 0:00:03.4]} 46... Kg4 {[%clk 0:00:06.5]} 47. Re6
{[%clk 0:00:02.4]} 47... a5 {[%clk 0:00:05.5]} 0-1

[Event "Late-Titled-Tuesday-Blitz-March-26-2024"]
[Site "Chess.com"]
[Date "2024.03.26"]
[Round "5"]
[White "sotochess"]
[Black "Flaccidmoves"]
[Result "0-1"]
[WhiteElo "2585"]
[BlackElo "2449"]
[TimeControl "180+1"]
[EndTime "14:58:11 PDT"]
[Termination "Flaccidmoves won on time"]

1. e4 {[%clk 0:03:00]} 1... e6 {[%clk 0:02:58.3]} 2. Qe2 {[%clk 0:02:59]} 2...
c5 {[%clk 0:02:57.6]} 3. Nf3 {[%clk 0:02:58.7]} 3... Nc6 {[%clk 0:02:58]} 4. g3
{[%clk 0:02:58.8]} 4... Nf6 {[%clk 0:02:42.4]} 5. Bg2 {[%clk 0:02:55.6]} 5... d5
{[%clk 0:02:32.9]} 6. d3 {[%clk 0:02:44.7]} 6... Be7 {[%clk 0:02:29.7]} 7. O-O
{[%clk 0:02:43.5]} 7... O-O {[%clk 0:02:29.4]} 8. e5 {[%clk 0:02:32.5]} 8... Nd7
{[%clk 0:02:29.1]} 9. h4 {[%clk 0:02:31.9]} 9... f6 {[%clk 0:02:11.2]} 10. exf6
{[%clk 0:02:26.8]} 10... Nxf6 {[%clk 0:02:12.1]} 11. Nbd2 {[%clk 0:02:25.1]}
11... Bd6 {[%clk 0:02:03.9]} 12. c4 {[%clk 0:02:19.4]} 12... Ng4 {[%clk
0:01:56.9]} 13. a3 {[%clk 0:01:42.7]} 13... Bd7 {[%clk 0:01:51.8]} 14. Rb1
{[%clk 0:01:41.9]} 14... a5 {[%clk 0:01:43.6]} 15. b3 {[%clk 0:01:41.3]} 15...
Qc7 {[%clk 0:01:31.6]} 16. Ng5 {[%clk 0:01:28.9]} 16... Nge5 {[%clk 0:00:57.8]}
17. cxd5 {[%clk 0:01:23.9]} 17... Nd4 {[%clk 0:00:57.5]} 18. Qh5 {[%clk
0:01:20.7]} 18... h6 {[%clk 0:00:57.2]} 19. Nxe6 {[%clk 0:01:20.4]} 19... Nxe6
{[%clk 0:00:49.8]} 20. dxe6 {[%clk 0:01:20]} 20... Bxe6 {[%clk 0:00:50.7]} 21.
Qe2 {[%clk 0:01:10.9]} 21... Bg4 {[%clk 0:00:45.1]} 22. f3 {[%clk 0:01:08.9]}
22... Bf5 {[%clk 0:00:42.2]} 23. Ne4 {[%clk 0:01:07.8]} 23... Rae8 {[%clk
0:00:41.7]} 24. Bb2 {[%clk 0:01:01]} 24... Qd7 {[%clk 0:00:19.5]} 25. Rbd1
{[%clk 0:00:27.2]} 25... Nc6 {[%clk 0:00:17.8]} 26. f4 {[%clk 0:00:25.5]} 26...
Nd4 {[%clk 0:00:14.9]} 27. Bxd4 {[%clk 0:00:22.6]} 27... cxd4 {[%clk 0:00:15.8]}
28. Qb2 {[%clk 0:00:21.8]} 28... Bxe4 {[%clk 0:00:09.1]} 29. dxe4 {[%clk
0:00:20.5]} 29... Bc5 {[%clk 0:00:09]} 30. b4 {[%clk 0:00:19.8]} 30... axb4
{[%clk 0:00:08.7]} 31. axb4 {[%clk 0:00:20.7]} 31... Bb6 {[%clk 0:00:09.2]} 32.
Kh2 {[%clk 0:00:19.9]} 32... Rc8 {[%clk 0:00:08]} 33. Bh3 {[%clk 0:00:18.1]}
33... Qa4 {[%clk 0:00:08.3]} 34. Rd2 {[%clk 0:00:15.4]} 34... Rc3 {[%clk
0:00:07.7]} 35. Rff2 {[%clk 0:00:13.5]} 35... Rb3 {[%clk 0:00:06.4]} 36. Be6+
{[%clk 0:00:13.2]} 36... Kh8 {[%clk 0:00:03.3]} 37. Qxb3 {[%clk 0:00:13.7]}
37... Qa1 {[%clk 0:00:04]} 38. Qd1 {[%clk 0:00:12]} 38... Qa3 {[%clk 0:00:03.5]}
39. Qg4 {[%clk 0:00:11.7]} 39... d3 {[%clk 0:00:03.5]} 40. Rg2 {[%clk
0:00:11.3]} 40... Be3 {[%clk 0:00:03.5]} 41. Ra2 {[%clk 0:00:10.4]} 41... Qc3
{[%clk 0:00:03.4]} 42. Bf5 {[%clk 0:00:10.4]} 42... Qf6 {[%clk 0:00:01.9]} 43.
Qf3 {[%clk 0:00:07.8]} 43... Qb6 {[%clk 0:00:02.2]} 44. Ra3 {[%clk 0:00:06.1]}
44... Rd8 {[%clk 0:00:02.3]} 45. e5 {[%clk 0:00:05.3]} 45... d2 {[%clk
0:00:02.4]} 46. Qd1 {[%clk 0:00:03.3]} 46... Rc8 {[%clk 0:00:02.7]} 47. Bg4
{[%clk 0:00:01.1]} 47... Qxb4 {[%clk 0:00:02.8]} 0-1

[Event "Late-Titled-Tuesday-Blitz-March-26-2024"]
[Site "Chess.com"]
[Date "2024.03.26"]
[Round "5"]
[White "jinxy2009"]
[Black "eightbyeightchess"]
[Result "1-0"]
[WhiteElo "2269"]
[BlackElo "2409"]
[TimeControl "180+1"]
[EndTime "14:58:11 PDT"]
[Termination "jinxy2009 won by checkmate"]

1. e4 {[%clk 0:03:00.9]} 1... e6 {[%clk 0:02:39.2]} 2. d4 {[%clk 0:02:56.8]}
2... d5 {[%clk 0:02:39.2]} 3. e5 {[%clk 0:02:57.1]} 3... c5 {[%clk 0:02:37.7]}
4. c3 {[%clk 0:02:53.1]} 4... Qb6 {[%clk 0:02:37.7]} 5. Nf3 {[%clk 0:02:53.7]}
5... Bd7 {[%clk 0:02:37.4]} 6. Be2 {[%clk 0:02:51.6]} 6... Bb5 {[%clk
0:02:37.2]} 7. Bxb5+ {[%clk 0:02:51.5]} 7... Qxb5 {[%clk 0:02:38.1]} 8. Na3
{[%clk 0:02:51.9]} 8... Qa6 {[%clk 0:02:36.3]} 9. dxc5 {[%clk 0:02:49.1]} 9...
Bxc5 {[%clk 0:02:37.2]} 10. b4 {[%clk 0:02:49.5]} 10... Bf8 {[%clk 0:02:36.7]}
11. Nd4 {[%clk 0:02:34.7]} 11... Nh6 {[%clk 0:02:24.2]} 12. Bxh6 {[%clk
0:02:10.4]} 12... gxh6 {[%clk 0:02:25.1]} 13. Nab5 {[%clk 0:02:10.6]} 13... Qb6
{[%clk 0:02:24]} 14. O-O {[%clk 0:02:00]} 14... a6 {[%clk 0:02:23.3]} 15. Na3
{[%clk 0:01:59.6]} 15... Nc6 {[%clk 0:02:23.9]} 16. Nxc6 {[%clk 0:01:55.9]}
16... Qxc6 {[%clk 0:02:24.8]} 17. Qb3 {[%clk 0:01:47.4]} 17... Bg7 {[%clk
0:02:23.1]} 18. c4 {[%clk 0:01:45.9]} 18... O-O {[%clk 0:02:17.7]} 19. cxd5
{[%clk 0:01:38.1]} 19... Qxd5 {[%clk 0:02:18.6]} 20. Qh3 {[%clk 0:01:29.4]}
20... Qxe5 {[%clk 0:02:16.4]} 21. Nc4 {[%clk 0:01:27.1]} 21... Qe4 {[%clk
0:02:07.3]} 22. Rac1 {[%clk 0:01:21.7]} 22... Rfd8 {[%clk 0:02:07.8]} 23. Rfe1
{[%clk 0:01:17.7]} 23... Qg6 {[%clk 0:02:02.7]} 24. Qf3 {[%clk 0:01:11]} 24...
b5 {[%clk 0:01:54.3]} 25. Ne5 {[%clk 0:01:04.2]} 25... Qf6 {[%clk 0:01:54.4]}
26. Qg3 {[%clk 0:00:58.7]} 26... Rac8 {[%clk 0:01:50.6]} 27. Nc6 {[%clk
0:00:36.5]} 27... Re8 {[%clk 0:01:40.3]} 28. h4 {[%clk 0:00:34.9]} 28... Kh8
{[%clk 0:01:31.6]} 29. Qe3 {[%clk 0:00:25.5]} 29... Rg8 {[%clk 0:01:28.2]} 30.
g3 {[%clk 0:00:25.6]} 30... Bf8 {[%clk 0:01:08.7]} 31. Ne5 {[%clk 0:00:24.2]}
31... Bxb4 {[%clk 0:01:05.3]} 32. Red1 {[%clk 0:00:13]} 32... Be7 {[%clk
0:00:39.5]} 33. Rxc8 {[%clk 0:00:07.4]} 33... Rxc8 {[%clk 0:00:40.4]} 34. Rd7
{[%clk 0:00:07.4]} 34... Re8 {[%clk 0:00:39.3]} 35. Ng4 {[%clk 0:00:05.4]} 35...
Qg6 {[%clk 0:00:34.8]} 36. Nxh6 {[%clk 0:00:04.6]} 36... f5 {[%clk 0:00:21.4]}
37. Qd4+ {[%clk 0:00:03.5]} 37... Bf6 {[%clk 0:00:21.5]} 38. Qe3 {[%clk
0:00:03.5]} 38... Bg7 {[%clk 0:00:12.5]} 39. Nf7+ {[%clk 0:00:03.6]} 39... Kg8
{[%clk 0:00:12.5]} 40. Ng5 {[%clk 0:00:03.6]} 40... h6 {[%clk 0:00:09.9]} 41.
Nf3 {[%clk 0:00:03.8]} 41... Rf8 {[%clk 0:00:08.6]} 42. Qa7 {[%clk 0:00:03.9]}
42... f4 {[%clk 0:00:08.7]} 43. Kg2 {[%clk 0:00:02.8]} 43... fxg3 {[%clk
0:00:08.8]} 44. fxg3 {[%clk 0:00:03.1]} 44... Qf6 {[%clk 0:00:09.2]} 45. Nh2
{[%clk 0:00:01.9]} 45... Qb2+ {[%clk 0:00:08.2]} 46. Kh3 {[%clk 0:00:02.1]}
46... Qe5 {[%clk 0:00:08.2]} 47. Ng4 {[%clk 0:00:02]} 47... Bf6 {[%clk
0:00:04.8]} 48. Nxe5 {[%clk 0:00:02.1]} 48... Bxe5 {[%clk 0:00:05]} 49. Rb7
{[%clk 0:00:01.8]} 49... Bd4 {[%clk 0:00:04.9]} 50. Qxa6 {[%clk 0:00:02]} 50...
Rf6 {[%clk 0:00:03.1]} 51. Qa8+ {[%clk 0:00:02]} 51... Rf8 {[%clk 0:00:03.3]}
52. Rb8 {[%clk 0:00:02.5]} 52... Kg7 {[%clk 0:00:03.1]} 53. Rxf8 {[%clk
0:00:02.4]} 53... Kg6 {[%clk 0:00:04]} 54. Rg8+ {[%clk 0:00:03]} 54... Kh5
{[%clk 0:00:04.9]} 55. Qe8# {[%clk 0:00:03.1]} 1-0

[Event "Late-Titled-Tuesday-Blitz-March-26-2024"]
[Site "Chess.com"]
[Date "2024.03.26"]
[Round "5"]
[White "Iuckyducky"]
[Black "misterlamine"]
[Result "1/2-1/2"]
[WhiteElo "2318"]
[BlackElo "2475"]
[TimeControl "180+1"]
[EndTime "14:58:12 PDT"]
[Termination "Game drawn - insufficient material"]

1. d4 {[%clk 0:02:55.2]} 1... Nf6 {[%clk 0:02:59.1]} 2. Nf3 {[%clk 0:02:55]}
2... g6 {[%clk 0:02:59.1]} 3. c4 {[%clk 0:02:53.5]} 3... Bg7 {[%clk 0:02:59.6]}
4. g3 {[%clk 0:02:54.2]} 4... O-O {[%clk 0:02:59.4]} 5. Bg2 {[%clk 0:02:54.8]}
5... d6 {[%clk 0:02:59.8]} 6. O-O {[%clk 0:02:55]} 6... Nbd7 {[%clk 0:03:00.2]}
7. Nc3 {[%clk 0:02:54.9]} 7... c5 {[%clk 0:02:58.6]} 8. Re1 {[%clk 0:02:52.6]}
8... cxd4 {[%clk 0:02:58.4]} 9. Nxd4 {[%clk 0:02:52.2]} 9... Ne5 {[%clk
0:02:57.7]} 10. b3 {[%clk 0:02:51.6]} 10... a6 {[%clk 0:02:57.1]} 11. Bb2 {[%clk
0:02:51.9]} 11... Bd7 {[%clk 0:02:53.8]} 12. Bxb7 {[%clk 0:02:50.8]} 12... Rb8
{[%clk 0:02:53.9]} 13. Bxa6 {[%clk 0:02:33.6]} 13... Qb6 {[%clk 0:02:51.1]} 14.
Bb5 {[%clk 0:02:29.7]} 14... Bxb5 {[%clk 0:02:38.8]} 15. Ncxb5 {[%clk 0:02:05]}
15... Ne4 {[%clk 0:02:35.6]} 16. a4 {[%clk 0:02:02]} 16... Ra8 {[%clk 0:02:18]}
17. Qc2 {[%clk 0:01:52]} 17... Qb7 {[%clk 0:02:00.1]} 18. a5 {[%clk 0:01:37.6]}
18... Nxf2 {[%clk 0:01:57.6]} 19. e4 {[%clk 0:00:59.5]} 19... Nfd3 {[%clk
0:01:43.6]} 20. Re3 {[%clk 0:00:51.8]} 20... Nxb2 {[%clk 0:01:34.3]} 21. Qxb2
{[%clk 0:00:52.5]} 21... f5 {[%clk 0:01:05.1]} 22. Qg2 {[%clk 0:00:45.4]} 22...
f4 {[%clk 0:01:03.9]} 23. gxf4 {[%clk 0:00:41]} 23... Rxf4 {[%clk 0:01:01.7]}
24. Qe2 {[%clk 0:00:11.2]} 24... Rg4+ {[%clk 0:00:51.3]} 25. Kh1 {[%clk
0:00:10.8]} 25... Rh4 {[%clk 0:00:28.7]} 26. Qe1 {[%clk 0:00:08.5]} 26... Rh5
{[%clk 0:00:25.2]} 27. Rd1 {[%clk 0:00:04.4]} 27... Ng4 {[%clk 0:00:24.2]} 28.
Re2 {[%clk 0:00:03.3]} 28... Be5 {[%clk 0:00:22.9]} 29. Nf3 {[%clk 0:00:02.7]}
29... Rxa5 {[%clk 0:00:18.5]} 30. Qxa5 {[%clk 0:00:02.8]} 30... Nxh2 {[%clk
0:00:17.8]} 31. Nxh2 {[%clk 0:00:02.9]} 31... Rxh2+ {[%clk 0:00:17.6]} 32. Rxh2
{[%clk 0:00:02.9]} 32... Qxe4+ {[%clk 0:00:18.5]} 33. Kg1 {[%clk 0:00:03.5]}
33... Bxh2+ {[%clk 0:00:18]} 34. Kxh2 {[%clk 0:00:03.7]} 34... Qe2+ {[%clk
0:00:18.6]} 35. Kh3 {[%clk 0:00:04.1]} 35... Qxd1 {[%clk 0:00:17.9]} 36. Qd8+
{[%clk 0:00:04.5]} 36... Kf7 {[%clk 0:00:18]} 37. Qc8 {[%clk 0:00:04]} 37...
Qf3+ {[%clk 0:00:18.5]} 38. Kh2 {[%clk 0:00:04]} 38... Qf2+ {[%clk 0:00:18.8]}
39. Kh3 {[%clk 0:00:04.2]} 39... Qf3+ {[%clk 0:00:19.3]} 40. Kh2 {[%clk
0:00:04.9]} 40... Qxb3 {[%clk 0:00:19.6]} 41. Qg4 {[%clk 0:00:04.8]} 41... Qc2+
{[%clk 0:00:19.4]} 42. Kh3 {[%clk 0:00:05]} 42... Qf5 {[%clk 0:00:19.9]} 43. Kg3
{[%clk 0:00:04.3]} 43... h5 {[%clk 0:00:19.8]} 44. Qxf5+ {[%clk 0:00:03.3]}
44... gxf5 {[%clk 0:00:19.3]} 45. Nd4 {[%clk 0:00:04.2]} 45... Kf6 {[%clk
0:00:19.4]} 46. Kh4 {[%clk 0:00:01.7]} 46... Ke5 {[%clk 0:00:19.5]} 47. Nf3+
{[%clk 0:00:02.1]} 47... Ke4 {[%clk 0:00:19.4]} 48. Nh2 {[%clk 0:00:01.3]} 48...
Kd4 {[%clk 0:00:19.8]} 49. Kxh5 {[%clk 0:00:01.3]} 49... Kxc4 {[%clk 0:00:20.5]}
50. Kg5 {[%clk 0:00:02.2]} 50... e6 {[%clk 0:00:20.8]} 51. Kf6 {[%clk
0:00:02.8]} 51... Kd5 {[%clk 0:00:21.4]} 52. Nf3 {[%clk 0:00:02.3]} 52... Ke4
{[%clk 0:00:21.9]} 53. Ng5+ {[%clk 0:00:02.6]} 53... Kf4 {[%clk 0:00:22.4]} 54.
Nxe6+ {[%clk 0:00:03.3]} 54... Ke4 {[%clk 0:00:22.9]} 55. Ng5+ {[%clk
0:00:03.2]} 55... Kf4 {[%clk 0:00:21.5]} 56. Ne6+ {[%clk 0:00:03.5]} 56... Ke3
{[%clk 0:00:22]} 57. Kxf5 {[%clk 0:00:03.5]} 57... d5 {[%clk 0:00:22.9]} 58. Ke5
{[%clk 0:00:03.9]} 58... d4 {[%clk 0:00:23.8]} 59. Nxd4 {[%clk 0:00:04.5]}
1/2-1/2

[Event "Late-Titled-Tuesday-Blitz-March-26-2024"]
[Site "Chess.com"]
[Date "2024.03.26"]
[Round "5"]
[White "Fandorine"]
[Black "Jimonios"]
[Result "1-0"]
[WhiteElo "2898"]
[BlackElo "2614"]
[TimeControl "180+1"]
[EndTime "14:58:18 PDT"]
[Termination "Fandorine won by resignation"]

1. e4 {[%clk 0:03:00.9]} 1... e5 {[%clk 0:02:59.3]} 2. Nf3 {[%clk 0:02:58.3]}
2... Nc6 {[%clk 0:02:59.3]} 3. Nc3 {[%clk 0:02:57]} 3... Nf6 {[%clk 0:02:57.6]}
4. g3 {[%clk 0:02:56.7]} 4... d5 {[%clk 0:02:57.1]} 5. exd5 {[%clk 0:02:55]}
5... Nxd5 {[%clk 0:02:58]} 6. Bg2 {[%clk 0:02:55.7]} 6... Nxc3 {[%clk
0:02:30.2]} 7. bxc3 {[%clk 0:02:56.6]} 7... Bd6 {[%clk 0:02:28.9]} 8. O-O {[%clk
0:02:56.7]} 8... O-O {[%clk 0:02:28.9]} 9. Re1 {[%clk 0:02:57.2]} 9... Bg4
{[%clk 0:02:05.1]} 10. h3 {[%clk 0:02:57.1]} 10... Bh5 {[%clk 0:01:53.1]} 11. g4
{[%clk 0:02:51.8]} 11... Bg6 {[%clk 0:01:52.9]} 12. d3 {[%clk 0:02:51.6]} 12...
e4 {[%clk 0:01:36.2]} 13. dxe4 {[%clk 0:02:49.6]} 13... Bxe4 {[%clk 0:01:37.1]}
14. Rb1 {[%clk 0:02:37.8]} 14... Rb8 {[%clk 0:01:24.4]} 15. Be3 {[%clk
0:02:25.9]} 15... Qf6 {[%clk 0:01:06]} 16. Bd4 {[%clk 0:01:41.5]} 16... Nxd4
{[%clk 0:00:17.2]} 17. Qxd4 {[%clk 0:01:06.9]} 17... Qxd4 {[%clk 0:00:06.4]} 18.
Nxd4 {[%clk 0:01:07.8]} 18... Bxg2 {[%clk 0:00:06.3]} 19. Kxg2 {[%clk
0:01:08.2]} 19... Rfd8 {[%clk 0:00:05.2]} 20. Re4 {[%clk 0:01:04.6]} 20... c6
{[%clk 0:00:04.4]} 21. h4 {[%clk 0:01:02.1]} 21... Bf8 {[%clk 0:00:03.9]} 22. g5
{[%clk 0:01:02.3]} 22... Rd5 {[%clk 0:00:01.6]} 23. Nxc6 {[%clk 0:01:01.1]}
23... Rc8 {[%clk 0:00:01.3]} 24. Nxa7 {[%clk 0:00:58.3]} 24... Rxc3 {[%clk
0:00:01.1]} 25. Rxb7 {[%clk 0:00:58.9]} 25... Rxc2 {[%clk 0:00:01.8]} 26. Rf4
{[%clk 0:00:59.1]} 26... Rdd2 {[%clk 0:00:01.9]} 27. Rbxf7 {[%clk 0:00:49.9]}
27... Bd6 {[%clk 0:00:02.5]} 28. Rf3 {[%clk 0:00:49]} 28... Bc5 {[%clk
0:00:03.2]} 29. Nb5 {[%clk 0:00:47.1]} 29... Rxa2 {[%clk 0:00:04]} 30. Nc3
{[%clk 0:00:47.6]} 30... Ra8 {[%clk 0:00:04.4]} 31. Ne4 {[%clk 0:00:48]} 31...
Rf8 {[%clk 0:00:04.2]} 32. Nxd2 {[%clk 0:00:47.8]} 32... Rxf7 {[%clk 0:00:04]}
33. Ne4 {[%clk 0:00:37.6]} 33... Be7 {[%clk 0:00:02.8]} 34. Re3 {[%clk
0:00:35.5]} 34... Rf4 {[%clk 0:00:02.6]} 35. Kg3 {[%clk 0:00:36.1]} 35... Rf8
{[%clk 0:00:02.3]} 36. Kg4 {[%clk 0:00:35.6]} 36... Bd8 {[%clk 0:00:03.2]} 37.
f4 {[%clk 0:00:35.6]} 37... g6 {[%clk 0:00:03.3]} 38. Rd3 {[%clk 0:00:32.2]}
38... Be7 {[%clk 0:00:04]} 39. Rd7 {[%clk 0:00:32]} 39... Kf7 {[%clk 0:00:04.9]}
40. Rb7 {[%clk 0:00:29.7]} 40... Ke6 {[%clk 0:00:05.4]} 41. Rb6+ {[%clk
0:00:28.2]} 41... Kf7 {[%clk 0:00:05.6]} 42. h5 {[%clk 0:00:24.5]} 42... gxh5+
{[%clk 0:00:05.7]} 43. Kxh5 {[%clk 0:00:24.7]} 43... Kg8 {[%clk 0:00:06.6]} 44.
Kg4 {[%clk 0:00:24.4]} 44... Kf7 {[%clk 0:00:06.4]} 45. Ng3 {[%clk 0:00:23.6]}
45... Rd8 {[%clk 0:00:06.4]} 46. Rb7 {[%clk 0:00:23.3]} 46... Ke6 {[%clk
0:00:05.3]} 47. Nf5 {[%clk 0:00:22.3]} 47... Bf8 {[%clk 0:00:05.3]} 48. Rxh7
{[%clk 0:00:18]} 48... Rd5 {[%clk 0:00:05.9]} 49. Ra7 {[%clk 0:00:12.9]} 49...
Rb5 {[%clk 0:00:03]} 50. Ra6+ {[%clk 0:00:13.1]} 50... Kd5 {[%clk 0:00:03.7]}
51. Rf6 {[%clk 0:00:11.6]} 51... Ba3 {[%clk 0:00:04.1]} 52. Ng3 {[%clk
0:00:11.4]} 52... Kd4 {[%clk 0:00:03.8]} 53. Re6 {[%clk 0:00:11.7]} 53... Bc1
{[%clk 0:00:04.1]} 54. Ne2+ {[%clk 0:00:11.7]} 54... Kd5 {[%clk 0:00:04.7]} 55.
Re5+ {[%clk 0:00:12.1]} 55... Kc6 {[%clk 0:00:04.8]} 56. Rxb5 {[%clk 0:00:12.6]}
1-0

[Event "Late-Titled-Tuesday-Blitz-March-26-2024"]
[Site "Chess.com"]
[Date "2024.03.26"]
[Round "5"]
[White "Mikayel99"]
[Black "Adar_07"]
[Result "0-1"]
[WhiteElo "2554"]
[BlackElo "2781"]
[TimeControl "180+1"]
[EndTime "14:58:21 PDT"]
[Termination "Adar_07 won by resignation"]

1. e4 {[%clk 0:02:57.5]} 1... c6 {[%clk 0:02:59.1]} 2. Nc3 {[%clk 0:02:56.1]}
2... d5 {[%clk 0:03:00]} 3. d4 {[%clk 0:02:56]} 3... dxe4 {[%clk 0:02:58.6]} 4.
Nxe4 {[%clk 0:02:56.9]} 4... Nf6 {[%clk 0:02:59]} 5. Nxf6+ {[%clk 0:02:56.3]}
5... gxf6 {[%clk 0:02:59.9]} 6. c3 {[%clk 0:02:55.1]} 6... Bf5 {[%clk
0:02:59.1]} 7. Bd3 {[%clk 0:02:55.1]} 7... Bxd3 {[%clk 0:02:57.8]} 8. Qxd3
{[%clk 0:02:56]} 8... e6 {[%clk 0:02:57.8]} 9. Nf3 {[%clk 0:02:54]} 9... Nd7
{[%clk 0:02:53.8]} 10. Qe4 {[%clk 0:02:48]} 10... f5 {[%clk 0:02:50.8]} 11. Qe2
{[%clk 0:02:46.7]} 11... Rg8 {[%clk 0:02:47.3]} 12. g3 {[%clk 0:02:41.5]} 12...
Nf6 {[%clk 0:02:41.1]} 13. Bg5 {[%clk 0:02:37.4]} 13... Be7 {[%clk 0:02:39.2]}
14. Bxf6 {[%clk 0:02:35.2]} 14... Bxf6 {[%clk 0:02:40.1]} 15. O-O-O {[%clk
0:02:34.7]} 15... Qd5 {[%clk 0:02:38.9]} 16. Kb1 {[%clk 0:02:32.8]} 16... O-O-O
{[%clk 0:02:37.4]} 17. Rhe1 {[%clk 0:02:32.9]} 17... Rg4 {[%clk 0:02:35.9]} 18.
h4 {[%clk 0:02:23.5]} 18... Rdg8 {[%clk 0:02:26.1]} 19. Ka1 {[%clk 0:02:08.8]}
19... Re4 {[%clk 0:01:59.8]} 20. Qd3 {[%clk 0:02:00.2]} 20... Rxe1 {[%clk
0:01:41.5]} 21. Nxe1 {[%clk 0:01:54.5]} 21... Rg4 {[%clk 0:01:35.5]} 22. Nc2
{[%clk 0:01:50.8]} 22... Qe4 {[%clk 0:01:00.5]} 23. Qxe4 {[%clk 0:01:28.4]}
23... Rxe4 {[%clk 0:00:59.2]} 24. Re1 {[%clk 0:01:27.8]} 24... Rg4 {[%clk
0:00:53.8]} 25. Ne3 {[%clk 0:01:27.6]} 25... Rg7 {[%clk 0:00:51.7]} 26. Ng2
{[%clk 0:01:26.8]} 26... Kd7 {[%clk 0:00:50.7]} 27. Nf4 {[%clk 0:01:25.7]} 27...
Rg4 {[%clk 0:00:50.5]} 28. Nd3 {[%clk 0:01:15.9]} 28... Kd6 {[%clk 0:00:44.8]}
29. Kb1 {[%clk 0:01:14.5]} 29... f4 {[%clk 0:00:24.5]} 30. Nxf4 {[%clk
0:01:12.9]} 30... Bxh4 {[%clk 0:00:24.8]} 31. Nd3 {[%clk 0:01:11.6]} 31... Bf6
{[%clk 0:00:19.4]} 32. Rh1 {[%clk 0:01:11.6]} 32... Rg7 {[%clk 0:00:19.5]} 33.
Kc2 {[%clk 0:01:10.1]} 33... b6 {[%clk 0:00:18.7]} 34. Kd2 {[%clk 0:01:09.8]}
34... Ke7 {[%clk 0:00:14.2]} 35. Ke3 {[%clk 0:01:09.8]} 35... Kd6 {[%clk
0:00:12.2]} 36. Ke4 {[%clk 0:01:09.7]} 36... Ke7 {[%clk 0:00:12.3]} 37. a4
{[%clk 0:01:09.5]} 37... Bg5 {[%clk 0:00:12.4]} 38. Ne5 {[%clk 0:01:07.7]} 38...
Kd6 {[%clk 0:00:09.4]} 39. a5 {[%clk 0:01:06.4]} 39... b5 {[%clk 0:00:05.1]} 40.
a6 {[%clk 0:01:04.7]} 40... f5+ {[%clk 0:00:04.7]} 41. Kf3 {[%clk 0:00:57.1]}
41... Bf6 {[%clk 0:00:02]} 42. Nd3 {[%clk 0:00:57.3]} 42... Bg5 {[%clk 0:00:01]}
43. Re1 {[%clk 0:00:55.6]} 43... h6 {[%clk 0:00:01.8]} 44. Nc5 {[%clk
0:00:54.6]} 44... Re7 {[%clk 0:00:02.5]} 45. b3 {[%clk 0:00:47.9]} 45... Bd2
{[%clk 0:00:02.7]} 46. Rh1 {[%clk 0:00:42.3]} 46... Bxc3 {[%clk 0:00:03.2]} 47.
Ke3 {[%clk 0:00:35.2]} 47... Bb4 {[%clk 0:00:02.2]} 48. Nb7+ {[%clk 0:00:34.8]}
48... Kc7 {[%clk 0:00:01.8]} 49. Rxh6 {[%clk 0:00:32.8]} 49... e5 {[%clk
0:00:01.6]} 50. dxe5 {[%clk 0:00:22.5]} 50... Rxe5+ {[%clk 0:00:02.5]} 51. Kf4
{[%clk 0:00:22.9]} 51... Rd5 {[%clk 0:00:03.2]} 52. Rh7+ {[%clk 0:00:17.5]}
52... Kb6 {[%clk 0:00:03.7]} 53. Rf7 {[%clk 0:00:13.2]} 53... Kxa6 {[%clk
0:00:03.6]} 54. Ke3 {[%clk 0:00:12.6]} 54... Kb6 {[%clk 0:00:03.3]} 55. f3
{[%clk 0:00:12.7]} 55... a5 {[%clk 0:00:03.3]} 56. g4 {[%clk 0:00:13.3]} 56...
fxg4 {[%clk 0:00:03.9]} 57. fxg4 {[%clk 0:00:14.2]} 57... a4 {[%clk 0:00:03.6]}
58. bxa4 {[%clk 0:00:14.4]} 58... bxa4 {[%clk 0:00:04.5]} 59. Rf4 {[%clk
0:00:13.9]} 59... Kb5 {[%clk 0:00:04.3]} 60. Rf5 {[%clk 0:00:12.3]} 60... Rxf5
{[%clk 0:00:02.8]} 61. gxf5 {[%clk 0:00:13.2]} 61... a3 {[%clk 0:00:03.5]} 62.
Kd3 {[%clk 0:00:14]} 62... a2 {[%clk 0:00:04]} 0-1